Cogmind - Beta 13 @@@ ROGUE MODE // 2024.04.10 @ 16:51:42 Player: lazy_engineer Result: Destroyed by G-47 Trooper with Particle Gun Performance ------------- Evolutions (0) 0 Regions Visited (2) 400 Robots Destroyed (22) 110 Value Destroyed (432) 432 Prototype IDs (0) 0 Alien Tech Used (0) 0 Bonus (0) 0 TOTAL SCORE: 942 Bonus ------- None Cogmind --------- Core Integrity 0/250 Matter 255/300 Energy 99/100 System Corruption 1% Temperature Cool (18) Movement Core (400) Ox7 Location -10/Mines Parts ------- > --- POWER (1) -------- (None) > --- PROPULSION (2) --- (None) > --- UTILITY (2) ------ Large Storage Unit Structural Scanner > --- WEAPON (2) ------- Autogun > --- INVENTORY (15) --- Improved Hover Unit Improved Hover Unit Improved Hover Unit Improved Hover Unit Visual Processing Unit Sensor Array Sensor Array Signal Interpreter Hacking Suite Hacking Suite Autogun Autogun Mini Grenade Launcher Datajack Mining Laser Peak State ------------ > --- POWER ------------ Light Ion Engine > --- PROPULSION ------- Light Treads Wheel > --- UTILITY ---------- Large Storage Unit Structural Scanner > --- WEAPON ----------- Heavy Assault Rifle Heavy Assault Rifle > --- INVENTORY -------- Wheel Medium Storage Unit Small Matter Pod Structural Scanner Sensor Array Sensor Array Signal Interpreter Seismic Detector Hacking Suite Heavy Assault Rifle Heavy Assault Rifle Mini Grenade Launcher Mini Grenade Launcher Datajack Mining Laser [Rating: 11] Favorites ----------- Power Light Ion Engine Engine Light Ion Engine Propulsion Light Treads Treads Light Treads Wheel Wheel Utility Structural Scanner Device Structural Scanner Storage Large Storage Unit Weapon Heavy Assault Rifle Ballistic Gun Heavy Assault Rifle Build | -11 -10 -10 ------- Run | Yrd Mat Min Slots Evolved . | . . . Power . | . . . Propulsion . | . . . Utility . | . . . Weapon . | . . . Parts Attached 24 | 7 17 . Power 2 | 1 1 . Engine 2 | 1 1 . Core . | . . . Reactor . | . . . Propulsion 8 | 2 6 . Treads 4 | 1 3 . Leg . | . . . Wheel 4 | 1 3 . Hover . | . . . Flight . | . . . Utility 6 | 2 4 . Device 2 | . 2 . Storage 4 | 2 2 . Processor . | . . . Hackware . | . . . Protection . | . . . Artifact . | . . . Weapon 8 | 2 6 . Energy Gun . | . . . Energy Cannon . | . . . Ballistic Gun 8 | 2 6 . Ballistic Cannon . | . . . Launcher . | . . . Special Weapon . | . . . Impact Weapon . | . . . Slashing Weapon . | . . . Piercing Weapon . | . . . Special Melee Weapon . | . . . Unidentified Prototypes . | . . . Parts Lost 7 | . 3 4 Power 2 | . 1 1 Propulsion 3 | . 1 2 Utility 1 | . 1 . Weapon 1 | . . 1 Highest Loss Streak 4 | . 2 4 To Critical Strikes . | . . . Average Slot Usage (%) 98 | . 98 79 Engine 13 | . 13 11 Treads 17 | . 18 5 Wheel 9 | . 9 8 Device 13 | . 13 14 Storage 14 | . 14 14 Ballistic Gun 27 | . 27 25 Naked Turns . | . . . Heaviest Build 30 | 17 30 30 Greatest Support 40 | 10 40 10 Greatest Overweight (x) 2 | 1 2 2 Average Overweight (x) 1 | . 1 2 Largest Inventory Capacity 15 | 8 15 15 Average Capacity 13 | 7 14 15 Most Carried 15 | 6 15 15 Average Carried 12 | 3 12 15 Final Capacity 15 | 8 15 15 Final Carried 15 | 6 15 15 Class Distribution -------------------- 100% | Mutant Dominant Class ---------------- Mutant | -10/Materials Mutant | -10/Mines Resources | -11 -10 -10 ----------- Run | Yrd Mat Min Matter Collected 834 | 344 490 . Remotely . | . . . Salvage Created 617 | 124 473 20 Parts 54 | 9 44 1 Haulers Intercepted . | . . . Recyclers Shooed . | . . . Parts Field Recycled . | . . . Retrieved Matter . | . . . Parts Self-Destructed . | . . . Prevented . | . . . Kills | -11 -10 -10 ------- Run | Yrd Mat Min Combat Hostiles Destroyed 11 | . 10 1 Guns 11 | . 10 1 Classes Destroyed 7 | 3 4 . Worker 2 | 2 . . Tunneler 2 | 1 1 . Recycler 1 | 1 . . Operator 3 | . 3 . Watcher 3 | . 3 . Swarmer 4 | . 3 1 Grunt 7 | . 7 . Best Kill Streak 4 | 2 4 1 Combat Bots Only 3 | . 3 1 Max Kills in Single Turn 1 | 1 1 1 Gunslinging . | . . . Exploded . | . . . Melee . | . . . Uniques/NPCs Destroyed . | . . . Combat | -11 -10 -10 -------- Run | Yrd Mat Min Hostile Shots Fired 135 | . 81 54 Missed 33 | . 25 8 Damage Taken 1070 | . 626 444 Core 263 | . 105 158 Absorbed by Shields . | . . . Core Remaining (%) 100 | 100 . . Volleys Fired 68 | 6 54 8 Largest 2 | 2 2 2 Hottest 46 | 40 46 46 Shots Fired 133 | 12 108 13 Gun 133 | 12 108 13 Cannon . | . . . Launcher . | . . . Special . | . . . Kinetic 133 | 12 108 13 Thermal . | . . . Explosive . | . . . Electromagnetic . | . . . Robot Hit Streak 11 | 9 11 5 Robot Miss Streak 3 | 1 3 3 Penetration Max . | . . . Secondary Targets 2 | . 1 1 Max Gunslinging Chain 1 | . 1 1 Shots Hit Robots 84 | 9 70 5 Core Hits 34 | 5 27 2 Critical Kills 1 | . 1 . Critical Parts Destroyed . | . . . Critical Strikes 1 | . 1 . Destroy 1 | . 1 . Melee Attacks . | . . . Impact . | . . . Slashing . | . . . Piercing . | . . . Sneak Attacks . | . . . Combat Hostiles . | . . . Follow-up Attacks . | . . . Damage Inflicted 1128 | 108 928 92 Guns 1128 | 108 928 92 Cannons . | . . . Explosions . | . . . Melee . | . . . Ramming . | . . . Kinetic 1128 | 108 928 92 Thermal . | . . . Explosive . | . . . Electromagnetic . | . . . Impact . | . . . Slashing . | . . . Piercing . | . . . Highest Corruption 1 | . 1 1 Average Corruption 1 | . 1 1 Corruption Purged . | . . . Corruption Blocked . | . . . Effects 10 | . 9 1 Message Errors 1 | . 1 . Matter Fused 3 | . 3 . Energy Discharges 1 | . 1 . Parts Fused 1 | . 1 . Data Loss (minor) 1 | . 1 . Data Loss (major) 2 | . 2 . Weapon Failures 1 | . . 1 Overload Shots . | . . . Overflow Damage . | . . . Projectiles . | . . . Explosions . | . . . Melee . | . . . Knockbacks . | . . . Impact . | . . . Kinetic . | . . . Secondary . | . . . Self-Inflicted Damage . | . . . Shots . | . . . Rammed . | . . . Targets Rammed . | . . . Kicked . | . . . Crushed . | . . . Highest Temperature 28 | . 6 28 Average Temperature 6 | . 3 10 Received Heat Transfer 348 | . 237 111 Siege Activations . | . . . Robots Corrupted . | . . . Combat Hostiles . | . . . Parts Fried . | . . . Impact Corruptions . | . . . Robots Melted . | . . . Combat Hostiles . | . . . Parts Melted . | . . . Heat Transferred . | . . . Parts Sabotaged . | . . . Parts Stolen . | . . . Parts Stripped . | . . . Power Chain Reactions . | . . . Alert | -11 -10 -10 ------- Run | Yrd Mat Min Peak Influence 160 | 20 160 35 Initial 13 | . 13 8 Average 48 | 7 52 6 Maximum Alert Level . | . . . Low Security (%) 100 | 100 100 100 Level 1 . | . . . Level 2 . | . . . Level 3 . | . . . Level 4 . | . . . Level 5 . | . . . High Security . | . . . Max Security . | . . . Squads Dispatched 2 | . 2 . Investigation 1 | . 1 . Extermination . | . . . Reinforcement 1 | . 1 . Assault . | . . . Garrison . | . . . Intercept . | . . . Searches Triggered . | . . . Construction Impeded . | . . . Haulers Reinforced . | . . . Active Scanning Responses . | . . . Cargo Convoy Interrupts . | . . . Stealth | -11 -10 -10 --------- Run | Yrd Mat Min Distress Signals 1 | . 1 . Communications Jammed . | . . . Distress Signals . | . . . Times Spotted 29 | . 24 5 Peak Tracking Total 5 | . 5 5 Tactical Retreats . | . . . Traps | -11 -10 -10 ------- Run | Yrd Mat Min Traps Triggered 1 | . 1 . Indirectly . | . . . Trap Hack Attempts . | . . . Triggered . | . . . Disarmed . | . . . Reprogrammed . | . . . Reused . | . . . Traps Extracted . | . . . Installed . | . . . Triggered . | . . . Machines | -11 -10 -10 ---------- Run | Yrd Mat Min Machines Disabled 2 | . 1 1 Max in Single Turn 1 | . 1 1 Machines Repaired . | . . . Machines Dismantled . | . . . Machines Sabotaged . | . . . Overloaded Fab Kills . | . . . Hacking | -11 -10 -10 --------- Run | Yrd Mat Min Machines Accessed 9 | . 9 . Terminals 7 | . 7 . Fabricators . | . . . Repair Stations . | . . . Recycling Units 2 | . 2 . Scanalyzers . | . . . Garrison Access . | . . . Total Hacks 29 | . 29 . Successful 14 | . 14 . Failed 15 | . 15 . Catastrophic . | . . . Database Lockouts . | . . . Manual 17 | . 17 . Terminals 23 | . 23 . Fabricators . | . . . Repair Stations . | . . . Recycling Units 6 | . 6 . Scanalyzers . | . . . Garrison Access . | . . . Terminal Hacks 7 | . 7 . Locate Traps 3 | . 3 . Security Status 1 | . 1 . Hauler Manifests 1 | . 1 . Zone Layout 2 | . 2 . Fabricator Hacks . | . . . Repair Station Hacks . | . . . Recycling Unit Hacks 2 | . 2 . Report Inventory 2 | . 2 . Scanalyzer . | . . . Garrison Access Hacks . | . . . Unauthorized Hacks 5 | . 5 . Terminals 4 | . 4 . Track 2 | . 2 . Assimilate 1 | . 1 . Operators 1 | . 1 . Fabricators . | . . . Repair Stations . | . . . Recycling Units 1 | . 1 . Reject 1 | . 1 . Scanalyzers . | . . . Garrison Access . | . . . Data Cores Recovered 1 | . 1 . Used 1 | . 1 . Hacking Detections 6 | . 6 . Full Trace Events 1 | . 1 . Feedback Events 1 | . 1 . Corruption 1 | . 1 . Feedback Blocked . | . . . Robot Schematics Acquired . | . . . Robots Built . | . . . Authchips . | . . . Time . | . . . Total Robot Build Rating . | . . . Part Schematics Acquired . | . . . Parts Built . | . . . Authchips . | . . . Time . | . . . Total Part Build Rating . | . . . Parts Repaired . | . . . Time . | . . . Parts Recycled . | . . . Recycled Matter . | . . . Retrieved Matter . | . . . Retrieved Components . | . . . Parts Scanalyzed . | . . . Part Schematics Acquired . | . . . Parts Damaged . | . . . Bothacking | -11 -10 -10 ------------ Run | Yrd Mat Min Used RIF Installer . | . . . Robots Hacked . | . . . Non-combat . | . . . Combat . | . . . Robot Hacks Applied . | . . . Relay Couplers Released . | . . . Fabnet Peak Effective % . | . . . Robots Rewired . | . . . Allies Hacked . | . . . Hacks Repelled . | . . . Allies | -11 -10 -10 -------- Run | Yrd Mat Min Total Allies . | . . . Largest Group . | . . . Highest-Rated Group . | . . . Highest-Rated Ally . | . . . Total Orders . | . . . Ally Attacks . | . . . Total Damage . | . . . Kills . | . . . Allies Corrupted . | . . . Allies Melted . | . . . Intel | -11 -10 -10 ------- Run | Yrd Mat Min Robot Analysis Total . | . . . Derelict Logs Recovered . | . . . Drone Launches . | . . . Drone Recoveries . | . . . Exploration | -11 -10 -10 ------------- Run | Yrd Mat Min Turns Passed 1870 | 139 1683 48 Spaces Moved 943 | 98 818 27 Core 18 | 18 . . Treads 195 | . 195 . Legs . | . . . Wheels 730 | 80 623 27 Hover . | . . . Flight . | . . . Fastest Speed 50 | 50 95 110 Average Speed 115 | 84 119 110 Slowest Speed 160 | 95 160 110 Overloaded Moves . | . . . Propulsion Burnouts . | . . . Robots Hopped . | . . . Cave-ins Triggered . | . . . Exploration Rate (%) 38 | 4 95 16 Regions Visited 2 Branch Regions 1 Pre-discovered Areas . | . . . Known Exits Taken . | . . . Unknown Exits Taken 2 | 1 1 . Scrap Searched . | . . . Spaces Dug . | . . . Terrain Destroyed . | . . . Melee . | . . . Projectile . | . . . AOE . | . . . Terrain Rammed . | . . . Walls Destroyed . | . . . Machines Disabled . | . . . Actions | -11 -10 -10 --------- Run | Yrd Mat Min Total 1597 | 141 1421 35 Wait 508 | 18 490 . Move 941 | 97 817 27 Hop . | . . . Pick Up 39 | 13 26 . Fast Attach 4 | . 4 . Attach 13 | 7 6 . Detach . | . . . Swap 7 | . 7 . Drop 17 | . 17 . Fire 68 | 6 54 8 Melee . | . . . Ram . | . . . Kick . | . . . Crush . | . . . Escape Stasis . | . . . Rewire . | . . . Trap . | . . . Miscellaneous . | . . . Route ------- -11/Scrapyard -10/Materials (discovered 4 exits: [*Mat x3] / [*Min]) -10/Mines History --------- Turn | Location | Event 9 | -11/Scrapyard | Discovered new exit (range 15) 140 | -11/Scrapyard | Entered Materials 279 | -10/Materials | Discovered new exit (range 7) 314 | -10/Materials | Build established: Mutant 587 | -10/Materials | Discovered new exit (range 8) 908 | -10/Materials | Discovered new exit (range 5) 1403 | -10/Materials | Discovered new exit (range 15) 1823 | -10/Materials | Entered Mines 1858 | -10/Mines | Core integrity fell below 50% 1867 | -10/Mines | Core integrity fell below 20% 1871 | -10/Mines | Destroyed by G-47 Trooper with Particle Gun Last Messages --------------- 01810_ W-16 Scout destroyed. 01812_ System corrupted: Component data lost. 01812_ K-01 Serf collects debris. 01814_ Dropped Structural Scanner. 01816_ K-01 Serf collects debris. 01816_ Acquired Structural Scanner. 01817_ Dropped Structural Scanner. 01818_ Acquired Visual Processing Unit. LOCATION=UNKNOWN GOAL=ESCAPE Something is scanning the area. 01840_ Lgt. Treads destroyed. 01857_ Wheel destroyed. 01858_ System corrupted: Autogun jammed. 01862_ Lgt. Ion Engine destroyed. 01864_ S-10 Pest destroyed. 01864_ Switching to secondary target: G-47 Trooper. 01866_ Seismic Survey Station disabled. 01868_ Autogun destroyed. 01869_ Critical hit (Burn: +37). Map ----- +----------------------------------------------------+ | | | | | | | | | | | ?????????????????????????????????????????????????? | | ?????????????????????????????????????????????????? | | ?????????????????????????????????????????????????? | | ?????????????????????????????????????????????????? | | ?????????????????????????????????????????????????? | | ?????????????????????????????????????????????????? | | ???????????????????????????????????????? ????????? | | ?????????????????????????????????????""" ????????? | | ?????????????????????????????????????""" ????????? | | ???????????????????????????????????? #???????? | | ????????????????????????????????????## ##???????? | | ?????????????????????????????#####??## ##???????? | | ????????????????????????????#######?## ##???????? | | ???????????????????????????#### ##?## ##???????? | | ???????????????????????????### #### ##???????? | | ????????????????????????? ### #### ####?????? | | ?????????????????## ????? ### ## ####?????? | | ?????????????????## ????? ?????? | | ????????????### ### ?######## """ ###??????? | | ????????????### ### ######### """ ##??????? | | ????????????## # @* ## """ ##??????? | | ?????????? %sgg### ###???#### | | ???????????????### """ s## ### ########??? ### | | ???????????????## "" ## ### #######??? ## | | ?????????????? "" ## ### ##?????? ## | | ??????????????t### ### ### ##???? ### | | ?????????????? ############ ### ###? #####? | | ????????????????########## ## ## #####???? | | ?????????????????????#### ###??????? | | ????????????????????### ###??????? | | ????????????????????## ### ##??????? | | ????????????????????## ##### ##??????? | | ????????????????????### ####### ### ###??????? | | ????????????????????######??### ##########??????? | | ?????????????????????####????## ######## ???????? | | ?????????????????????????????## ##??????????????? | | ?????????????????????????????## ##??????????????? | | ????????????????????????????? ##??????????????? | | ???????????????????????????? ##??????????????? | | ????????????????????????????#######??????????????? | | ????????????????????????????#######??????????????? | | ?????????????????????????????????????????????????? | | ?????????????????????????????????????????????????? | | ?????????????????????????????????????????????????? | | ?????????????????????????????????????????????????? | +----------------------------------------------------+ Best States ------------- Heat Dissipation 25 Energy Generation 10 Energy Capacity 125 Matter Stores 300 Matter Capacity 300 Sight Range 16 Terrain Scan Density 10 Evasion (%) 50 Recoil Reduction 2 Item Schematics ----------------- None Robot Schematics ------------------ None Fabricated ------------ Nothing Alien Tech Used ----------------- None Achievements -------------- None Challenges ------------ None Game ------ Seed GaussWeldingStabilizer Manual? 0 Play Time 00:16:05 Cumulative 29.6 hours Start 2024.04.10 @ 16:35:58 End 2024.04.10 @ 16:51:42 Sessions 1 Manual Loads 0 Difficulty Rogue Special Mode None Game No. 58 Rogue 58 Adventurer 0 Explorer 0 Win Type - Total 0 Types 0/0/0/0/0/0/0/0/0 Lore% 22 Gallery% 25 Achievement% 22 Wizard Run 0 Options --------- Layout 0 ASCII 0 Keyboard 0 Movement Mouse Keybinds 0 Fullscreen 1 Font 24/Smallcaps Map View 76x50 Zoom Use 0% Tactical HUD 1 Map Filters NONE Filters NONE Steam 1 RUN: db47a289-9777-4031-aac9-75f5d643bce5